fUSD/lending_fUSD_20240712
["ID","MTS","AMOUNT","RATE_DAILY","PERIOD"]
[331793134,1720765872266,-500.0,0.00013808,2]
[331793135,1720765872276,-151.0,0.00013808,2]
[331793136,1720765872285,-1660.92,0.00013808,2]
[331793137,1720765872350,-500.0,0.00013808,2]
[331793138,1720765872359,-644.5,0.00013808,2]
[331793139,1720765872368,-315.615147,0.00013808,2]
[331793140,1720765872377,-1467.31,0.00013808,2]
[331793141,1720765872386,-500.0,0.00013808,2]
[331793142,1720765872396,-261.55742347,0.00013808,2]
[331793143,1720765872405,-500.0,0.00013808,2]
[331793144,1720765872415,-315.615147,0.00013808,2]
[331793145,1720765872425,-981.49,0.00013808,2]
[331793146,1720765872434,-500.0,0.00013808,2]
[331793147,1720765872443,-500.0,0.00013808,2]
[331793148,1720765872453,-500.0,0.00013808,2]
[331793149,1720765872462,-500.0,0.00013808,2]
[331793150,1720765872471,-500.0,0.00013808,2]
[331793151,1720765872481,-1112.45,0.00013808,2]
[331793152,1720765872492,-500.0,0.00013808,2]
[331793153,1720765872503,-278.67,0.00013808,2]
[331793154,1720765872512,-721.53,0.00013808,2]
[331793155,1720765872522,-500.0,0.00013808,2]
[331793156,1720765872531,-500.0,0.00013808,2]
[331793157,1720765872541,-773.09,0.00013808,2]
[331793158,1720765872551,-500.0,0.00013808,2]
[331793159,1720765872560,-500.0,0.00013808,2]
[331793160,1720765872571,-500.0,0.00013808,2]
[331793161,1720765872580,-750.22,0.00013808,2]
[331793162,1720765872589,-500.0,0.00013808,2]
[331793163,1720765872598,-500.0,0.00013808,2]
[331793164,1720765872608,-617.12,0.00013808,2]
[331793165,1720765872617,-1485.55,0.00013808,2]
[331793166,1720765872626,-500.0,0.00013808,2]
[331793167,1720765872635,-500.0,0.00013808,2]
[331793168,1720765872645,-645.73,0.00013808,2]
[331793169,1720765872654,-500.0,0.00013808,2]
[331793170,1720765872665,-609.33,0.00013808,2]
[331793171,1720765872675,-500.0,0.00013808,2]
[331793172,1720765872684,-500.0,0.00013808,2]
[331793173,1720765872695,-151.0,0.00013808,2]
[331793174,1720765872704,-1043.11,0.00013808,2]
[331793175,1720765872713,-500.0,0.00013808,2]
[331793176,1720765872722,-654.803429,0.00013808,2]
[331793177,1720765872731,-500.0,0.00013808,2]
[331793178,1720765872740,-500.0,0.00013808,2]
[331793179,1720765872749,-577.94,0.00013808,2]
[331793180,1720765872758,-1001.09,0.00013808,2]
[331793181,1720765872767,-572.94,0.00013808,2]
[331793182,1720765872776,-500.0,0.00013808,2]
[331793183,1720765872785,-654.803429,0.00013808,2]
[331793184,1720765872794,-500.0,0.00013808,2]
[331793185,1720765872804,-500.0,0.00013808,2]
[331793186,1720765872813,-500.0,0.00013808,2]
[331793187,1720765872822,-500.0,0.00013808,2]
[331793188,1720765872832,-826.26,0.00013808,2]
[331793189,1720765872841,-500.0,0.00013808,2]
[331793190,1720765872850,-500.0,0.00013808,2]
[331793191,1720765872859,-863.68,0.00013808,2]
[331793192,1720765872869,-453.86355039,0.00013808,2]
[331793193,1720765872878,-500.0,0.00013808,2]
[331793194,1720765872887,-500.0,0.00013808,2]
[331793195,1720765872897,-500.0,0.00013808,2]
[331793196,1720765872906,-500.0,0.00013808,2]
[331793197,1720765872916,-500.0,0.00013808,2]
[331793198,1720765872926,-500.0,0.00013808,2]
[331793199,1720765872935,-500.0,0.00013808,2]
[331793200,1720765872945,-978.71,0.00013808,2]
[331793201,1720765872956,-500.0,0.00013808,2]
[331793202,1720765872967,-927.14,0.00013808,2]
[331793203,1720765872976,-500.0,0.00013808,2]
[331793204,1720765872987,-500.0,0.00013808,2]
[331793205,1720765872997,-500.0,0.00013808,2]
[331793206,1720765873007,-1033.49,0.00013808,2]
[331793207,1720765873016,-500.0,0.00013808,2]
[331793208,1720765873025,-500.0,0.00013808,2]
[331793209,1720765873035,-584.99,0.00013808,2]
[331793210,1720765873045,-151.0,0.00013808,2]
[331793211,1720765873055,-500.0,0.00013808,2]
[331793212,1720765873066,-151.0,0.00013808,2]
[331793213,1720765873076,-924.22,0.00013808,2]
[331793214,1720765873085,-500.0,0.00013808,2]
[331793215,1720765873095,-1551.06,0.00013808,2]
[331793216,1720765873104,-500.0,0.00013808,2]
[331793217,1720765873114,-500.0,0.00013808,2]
[331793218,1720765873123,-500.0,0.00013808,2]
[331793219,1720765873133,-151.0,0.00013808,2]
[331793220,1720765873143,-500.0,0.00013808,2]
[331793221,1720765873152,-936.64,0.00013808,2]
[331793222,1720765873165,-500.0,0.00013808,2]
[331793223,1720765873174,-500.0,0.00013808,2]
[331793224,1720765873184,-500.0,0.00013808,2]
[331793225,1720765873194,-515.21205565,0.00013808,2]
[331793226,1720765873204,-151.0,0.00013808,2]
[331793227,1720765873213,-500.0,0.00013808,2]
[331793228,1720765873223,-500.0,0.00013808,2]
[331793229,1720765873233,-500.0,0.00013808,2]
[331793230,1720765873242,-500.0,0.00013808,2]
[331793231,1720765873252,-500.0,0.00013808,2]
[331793232,1720765873261,-500.0,0.00013808,2]
[331793233,1720765873271,-500.0,0.00013808,2]
[331793234,1720765873281,-583.16,0.00013808,2]
[331793235,1720765873291,-500.0,0.00013808,2]
[331793236,1720765873303,-1266.54,0.00013808,2]
[331793237,1720765873313,-500.0,0.00013808,2]
[331793238,1720765873322,-151.0,0.00013808,2]
[331793239,1720765873332,-1145.72,0.00013808,2]
[331793240,1720765873342,-151.0,0.00013808,2]
[331793241,1720765873353,-151.0,0.00013808,2]
[331793242,1720765873363,-500.0,0.00013808,2]
[331793243,1720765873373,-500.0,0.00013808,2]
[331793244,1720765873384,-500.0,0.00013808,2]
[331793245,1720765873394,-221.59898045,0.00013808,2]
[331793246,1720765873404,-500.0,0.00013808,2]
[331793247,1720765873414,-327.54,0.00013808,2]
[331793248,1720765873424,-628.89,0.00013808,2]
[331793249,1720765873433,-1072.75,0.00013808,2]
[331793250,1720765873444,-908.15,0.00013808,2]
[331793251,1720765873454,-500.0,0.00013808,2]
[331793252,1720765873465,-617.45,0.00013808,2]
[331793253,1720765873476,-882.64,0.00013808,2]
[331793254,1720765873485,-151.0,0.00013808,2]
[331793255,1720765873500,-500.0,0.00013808,2]
[331793256,1720765873510,-151.0,0.00013808,2]
[331793257,1720765873520,-151.0,0.00013808,2]
[331793258,1720765873530,-299.551132,0.00013808,2]
[331793259,1720765873540,-500.0,0.00013808,2]
[331793260,1720765873550,-500.0,0.00013808,2]
[331793261,1720765873559,-597.8,0.00013808,2]
[331793262,1720765873570,-1413.12,0.00013808,2]
[331793263,1720765873579,-500.0,0.00013808,2]
[331793264,1720765873589,-500.0,0.00013808,2]
[331793265,1720765873598,-684.65,0.00013808,2]
[331793266,1720765873608,-500.0,0.00013808,2]
[331793267,1720765873618,-1269.4,0.00013808,2]
[331793268,1720765873628,-500.0,0.00013808,2]
[331793269,1720765873637,-500.0,0.00013808,2]
[331793270,1720765873646,-1009.57,0.00013808,2]
[331793271,1720765873655,-820.34,0.00013808,2]
[331793272,1720765873665,-500.0,0.00013808,2]
[331793273,1720765873675,-500.0,0.00013808,2]
[331793274,1720765873685,-500.0,0.00013808,2]
[331793275,1720765873694,-570.33,0.00013808,2]
[331793276,1720765873704,-751.75,0.00013808,2]
[331793277,1720765873714,-239.08812517,0.00013808,2]
[331793278,1720765873724,-500.0,0.00013808,2]
[331793279,1720765873733,-500.0,0.00013808,2]
[331793280,1720765873743,-551.7322762,0.00013808,2]
[331793281,1720765873753,-500.0,0.00013808,2]
[331793282,1720765873762,-500.0,0.00013808,2]
[331793283,1720765873772,-1287.67,0.00013808,2]
[331793284,1720765873782,-922.77,0.00013808,2]
[331793285,1720765873792,-500.0,0.00013808,2]
[331793286,1720765873801,-500.0,0.00013808,2]
[331793287,1720765873811,-1345.39,0.00013808,2]
[331793288,1720765873820,-649.45,0.00013808,2]
[331793289,1720765873830,-500.0,0.00013808,2]
[331793290,1720765873839,-500.0,0.00013808,2]
[331793291,1720765873849,-500.0,0.00013808,2]
[331793292,1720765873859,-162.229652,0.00013808,2]
[331793293,1720765873869,-536.18,0.00013808,2]
[331793294,1720765873878,-500.0,0.00013808,2]
[331793295,1720765873888,-500.0,0.00013808,2]
[331793296,1720765873897,-895.96,0.00013808,2]
[331793297,1720765873907,-1632.41,0.00013808,2]
[331793298,1720765873918,-500.0,0.00013808,2]
[331793299,1720765873927,-500.0,0.00013808,2]
[331793300,1720765873937,-500.0,0.00013808,2]
[331793301,1720765873947,-566.55,0.00013808,2]
[331793302,1720765873956,-729.38,0.00013808,2]
[331793303,1720765873966,-500.0,0.00013808,2]
[331793304,1720765873975,-595.81128211,0.00013808,2]
[331793305,1720765873985,-500.0,0.00013808,2]
[331793306,1720765873994,-500.0,0.00013808,2]
[331793307,1720765874004,-500.0,0.00013808,2]
[331793308,1720765874013,-1661.47,0.00013808,2]
[331793309,1720765874022,-500.0,0.00013808,2]
[331793310,1720765874032,-208.565744,0.00013808,2]
[331793311,1720765874041,-208.565744,0.00013808,2]
[331793312,1720765874051,-500.0,0.00013808,2]
[331793313,1720765874061,-1622.68,0.00013808,2]
[331793314,1720765874071,-208.565744,0.00013808,2]
[331793315,1720765874081,-208.565744,0.00013808,2]
[331793316,1720765874091,-1461.03,0.00013808,2]
[331793317,1720765874101,-500.0,0.00013808,2]
[331793318,1720765874110,-932.1,0.00013808,2]
[331793319,1720765874120,-600.18,0.00013808,2]
[331793320,1720765874130,-500.0,0.00013808,2]
[331793321,1720765874140,-652.76,0.00013808,2]
[331793322,1720765874150,-500.0,0.00013808,2]
[331793323,1720765874159,-500.0,0.00013808,2]
[331793324,1720765874169,-500.0,0.00013808,2]
[331793325,1720765874179,-590.79,0.00013808,2]
[331793326,1720765874189,-649.76,0.00013808,2]
[331793327,1720765874199,-500.0,0.00013808,2]
[331793328,1720765874208,-500.0,0.00013808,2]
[331793329,1720765874218,-562.94,0.00013808,2]
[331793330,1720765874227,-500.0,0.00013808,2]
[331793331,1720765874237,-500.0,0.00013808,2]
[331793332,1720765874246,-500.0,0.00013808,2]
[331793333,1720765874256,-548.74,0.00013808,2]
[331793334,1720765874266,-500.0,0.00013808,2]
[331793335,1720765874275,-500.0,0.00013808,2]
[331793336,1720765874285,-500.0,0.00013808,2]
[331793337,1720765874295,-500.0,0.00013808,2]
[331793338,1720765874305,-511.55,0.00013808,2]
[331793339,1720765874315,-500.0,0.00013808,2]
[331793340,1720765874325,-500.0,0.00013808,2]
[331793341,1720765874335,-682.84,0.00013808,2]
[331793342,1720765874345,-185.14,0.00013808,2]
[331793343,1720765874355,-500.0,0.00013808,2]
[331793344,1720765874364,-478.56,0.00013808,2]
[331793345,1720765874374,-557.92,0.00013808,2]
[331793346,1720765874384,-500.0,0.00013808,2]
[331793347,1720765874394,-913.11,0.00013808,2]
[331793348,1720765874404,-500.0,0.00013808,2]
[331793349,1720765874414,-500.0,0.00013808,2]
[331793350,1720765874423,-176.54466082,0.00013808,2]
[331793351,1720765874434,-500.0,0.00013808,2]
[331793352,1720765874445,-500.0,0.00013808,2]
[331793353,1720765874454,-500.0,0.00013808,2]
[331793354,1720765874464,-665.1,0.00013808,2]
[331793355,1720765874474,-427.04,0.00013808,2]
[331793356,1720765874483,-500.0,0.00013808,2]
[331793357,1720765874495,-500.0,0.00013808,2]
[331793358,1720765874504,-151.0,0.00013808,2]
[331793359,1720765874514,-647.57,0.00013808,2]
[331793360,1720765874524,-500.0,0.00013808,2]
[331793361,1720765874534,-1070.59,0.00013808,2]
[331793362,1720765874544,-655.14,0.00013808,2]
[331793363,1720765874554,-151.0,0.00013808,2]
[331793364,1720765874564,-151.0,0.00013808,2]
[331793365,1720765874574,-500.0,0.00013808,2]
[331793366,1720765874584,-500.0,0.00013808,2]
[331793367,1720765874593,-500.0,0.00013808,2]
[331793368,1720765874603,-500.0,0.00013808,2]
[331793369,1720765874613,-500.0,0.00013808,2]
[331793370,1720765874622,-500.0,0.00013808,2]
[331793371,1720765874631,-549.77,0.00013808,2]
[331793372,1720765874640,-500.0,0.00013808,2]
[331793373,1720765874650,-500.0,0.00013808,2]
[331793374,1720765874659,-955.34,0.00013808,2]
[331793375,1720765874670,-500.0,0.00013808,2]
[331793376,1720765874680,-500.0,0.00013808,2]
[331793377,1720765874689,-500.0,0.00013808,2]
[331793378,1720765874698,-500.0,0.00013808,2]
[331793379,1720765874707,-500.0,0.00013808,2]
[331793380,1720765874716,-572.55,0.00013808,2]
[331793381,1720765874726,-500.0,0.00013808,2]
[331793382,1720765874735,-500.0,0.00013808,2]
[331793383,1720765874744,-500.0,0.00013808,2]
[331793384,1720765874753,-1087.88,0.00013808,2]
[331793385,1720765874762,-500.0,0.00013808,2]
[331793386,1720765874771,-924.38,0.00013808,2]
[331793387,1720765874780,-500.0,0.00013808,2]
[331793388,1720765874789,-500.0,0.00013808,2]
[331793389,1720765874798,-151.0,0.00013808,2]
[331793390,1720765874808,-500.0,0.00013808,2]
[331793391,1720765874817,-151.0,0.00013808,2]
[331793392,1720765874826,-500.0,0.00013808,2]
[331793393,1720765874835,-500.0,0.00013808,2]
[331793394,1720765874845,-500.0,0.00013808,2]
[331793395,1720765874854,-151.0,0.00013808,2]
[331793396,1720765874863,-895.76,0.00013808,2]
[331793397,1720765874872,-255.5285937,0.00013808,2]
[331793398,1720765874881,-500.0,0.00013808,2]
[331793399,1720765874891,-877.72,0.00013808,2]
[331793400,1720765874900,-811.35,0.00013808,2]
[331793401,1720765874909,-701.46,0.00013808,2]
[331793402,1720765874919,-500.0,0.00013808,2]
[331793403,1720765874928,-500.0,0.00013808,2]
[331793404,1720765874937,-500.0,0.00013808,2]
[331793405,1720765874947,-951.0,0.00013808,2]
[331793406,1720765874956,-943.64,0.00013808,2]
[331793407,1720765874966,-535.3,0.00013808,2]
[331793408,1720765874975,-500.0,0.00013808,2]
[331793409,1720765874985,-500.0,0.00013808,2]
[331793410,1720765874994,-533.99,0.00013808,2]
[331793411,1720765875003,-500.0,0.00013808,2]
[331793412,1720765875013,-500.0,0.00013808,2]
[331793413,1720765875022,-500.0,0.00013808,2]
[331793414,1720765875031,-500.0,0.00013808,2]
[331793415,1720765875040,-500.0,0.00013808,2]
[331793416,1720765875050,-500.0,0.00013808,2]
[331793417,1720765875060,-500.0,0.00013808,2]
[331793418,1720765875069,-500.0,0.00013808,2]
[331793419,1720765875078,-691.79,0.00013808,2]
[331793420,1720765875087,-500.0,0.00013808,2]
[331793421,1720765875096,-500.0,0.00013808,2]
[331793422,1720765875106,-749.0,0.00013808,2]
[331793423,1720765875115,-646.61,0.00013808,2]
[331793424,1720765875124,-1153.39,0.00013808,2]
[331793425,1720765875133,-828.98,0.00013808,2]
[331793426,1720765875142,-500.0,0.00013808,2]
[331793427,1720765875152,-500.0,0.00013808,2]
[331793428,1720765875161,-500.0,0.00013808,2]
[331793429,1720765875171,-188.748856,0.00013808,2]
[331793430,1720765875181,-188.748856,0.00013808,2]
[331793431,1720765875191,-151.0,0.00013808,2]
[331793432,1720765875201,-151.0,0.00013808,2]
[331793433,1720765875211,-500.0,0.00013808,2]
[331793434,1720765875221,-500.0,0.00013808,2]
[331793435,1720765875230,-797.92,0.00013808,2]
[331793436,1720765875240,-188.748856,0.00013808,2]
[331793437,1720765875251,-188.748856,0.00013808,2]
[331793438,1720765875261,-500.0,0.00013808,2]
[331793439,1720765875270,-678.2,0.00013808,2]
[331793440,1720765875280,-151.0,0.00013808,2]
[331793441,1720765875289,-151.0,0.00013808,2]
[331793442,1720765875298,-569.82,0.00013808,2]
[331793443,1720765875307,-500.0,0.00013808,2]
[331793444,1720765875316,-500.0,0.00013808,2]
[331793445,1720765875325,-500.0,0.00013808,2]
[331793446,1720765875337,-500.0,0.00013808,2]
[331793447,1720765875347,-500.0,0.00013808,2]
[331793448,1720765875358,-500.0,0.00013808,2]
[331793449,1720765875370,-500.0,0.00013808,2]
[331793450,1720765875380,-500.0,0.00013808,2]
[331793451,1720765875391,-742.09,0.00013808,2]
[331793452,1720765875400,-925.55,0.00013808,2]
[331793453,1720765875409,-718.26,0.00013808,2]
[331793454,1720765875418,-500.0,0.00013808,2]
[331793455,1720765875427,-500.0,0.00013808,2]
[331793456,1720765875439,-500.0,0.00013808,2]
[331793457,1720765875449,-660.22,0.00013808,2]
[331793458,1720765875458,-500.0,0.00013808,2]
[331793459,1720765875468,-685.66,0.00013808,2]
[331793460,1720765875477,-500.0,0.00013808,2]
[331793461,1720765875489,-500.0,0.00013808,2]
[331793462,1720765875501,-616.92,0.00013808,2]
[331793463,1720765875511,-500.0,0.00013808,2]
[331793464,1720765875522,-500.0,0.00013808,2]
[331793465,1720765875534,-500.0,0.00013808,2]
[331793466,1720765875544,-500.0,0.00013808,2]
[331793467,1720765875555,-626.69,0.00013808,2]
[331793468,1720765875567,-578.66,0.00013808,2]
[331793469,1720765875578,-500.0,0.00013808,2]
[331793470,1720765875590,-500.0,0.00013808,2]
[331793471,1720765875600,-1182.27,0.00013808,2]
[331793472,1720765875612,-197.84,0.00013808,2]
[331793473,1720765875624,-751.88,0.00013808,2]
[331793474,1720765875636,-151.0,0.00013808,2]
[331793475,1720765875647,-500.0,0.00013808,2]
[331793476,1720765875658,-151.0,0.00013808,2]
[331793477,1720765875670,-500.0,0.00013808,2]
[331793478,1720765875680,-788.87,0.00013808,2]
[331793479,1720765875692,-151.0,0.00013808,2]
[331793480,1720765875702,-151.0,0.00013808,2]
[331793481,1720765875712,-500.0,0.00013808,2]
[331793482,1720765875721,-589.96,0.00013808,2]
[331793483,1720765875731,-500.0,0.00013808,2]
[331793484,1720765875741,-500.0,0.00013808,2]
[331793485,1720765875751,-1518.85,0.00013808,2]
[331793486,1720765875762,-500.0,0.00013808,2]
[331793487,1720765875772,-453.1,0.00013808,2]
[331793488,1720765875782,-863.12,0.00013808,2]
[331793489,1720765875794,-500.0,0.00013808,2]
[331793490,1720765875805,-500.0,0.00013808,2]
[331793491,1720765875816,-500.0,0.00013808,2]
[331793492,1720765875826,-500.0,0.00013808,2]
[331793493,1720765875836,-765.3,0.00013808,2]
[331793494,1720765875846,-500.0,0.00013808,2]
[331793495,1720765875857,-1173.86,0.00013808,2]
[331793496,1720765875867,-500.0,0.00013808,2]
[331793497,1720765875877,-500.0,0.00013808,2]
[331793498,1720765875886,-714.93,0.00013808,2]
[331793499,1720765875896,-500.0,0.00013808,2]
[331793500,1720765875905,-501.04,0.00013808,2]
[331793501,1720765875915,-284.328778,0.00013808,2]
[331793502,1720765875925,-284.328778,0.00013808,2]
[331793503,1720765875934,-500.0,0.00013808,2]
[331793504,1720765875943,-284.328778,0.00013808,2]
[331793505,1720765875953,-284.328778,0.00013808,2]
[331793506,1720765875963,-500.0,0.00013808,2]
[331793507,1720765875973,-500.0,0.00013808,2]
[331793508,1720765875982,-500.0,0.00013808,2]
[331793509,1720765875992,-889.91,0.00013808,2]
[331793510,1720765876002,-500.0,0.00013808,2]
[331793511,1720765876012,-527.31722657,0.00013808,2]
[331793512,1720765876022,-797.27,0.00013808,2]
[331793513,1720765876031,-500.0,0.00013808,2]
[331793514,1720765876041,-500.0,0.00013808,2]
[331793515,1720765876051,-512.8,0.00013808,2]
[331793516,1720765876060,-500.0,0.00013808,2]
[331793517,1720765876070,-508.63,0.00013808,2]
[331793518,1720765876080,-500.0,0.00013808,2]
[331793519,1720765876090,-500.0,0.00013808,2]
[331793520,1720765876099,-1002.89,0.00013808,2]
[331793521,1720765876109,-500.0,0.00013808,2]
[331793522,1720765876118,-491.94028065,0.00013808,2]
[331793523,1720765876128,-905.0,0.00013808,2]
[331793524,1720765876138,-151.0,0.00013808,2]
[331793525,1720765876147,-151.0,0.00013808,2]
[331793526,1720765876157,-500.0,0.00013808,2]
[331793527,1720765876169,-500.0,0.00013808,2]
[331793528,1720765876185,-471.29744752,0.00013808,2]
[331793529,1720765876199,-500.0,0.00013808,2]
[331793530,1720765876210,-500.0,0.00013808,2]
[331793531,1720765876220,-500.0,0.00013808,2]
[331793532,1720765876230,-414.949094,0.00013808,2]
[331793533,1720765876240,-500.0,0.00013808,2]
[331793534,1720765876250,-414.949094,0.00013808,2]
[331793535,1720765876261,-504.61,0.00013808,2]
[331793536,1720765876271,-500.0,0.00013808,2]
[331793537,1720765876281,-998.09,0.00013808,2]
[331793538,1720765876291,-472.920244,0.00013808,2]
[331793539,1720765876300,-472.920244,0.00013808,2]
[331793540,1720765876311,-414.949094,0.00013808,2]
[331793541,1720765876322,-500.0,0.00013808,2]
[331793542,1720765876332,-414.949094,0.00013808,2]
[331793543,1720765876343,-1181.8,0.00013808,2]
[331793544,1720765876353,-472.920244,0.00013808,2]
[331793545,1720765876363,-472.920244,0.00013808,2]
[331793546,1720765876374,-160.912299,0.00013808,2]
[331793547,1720765876384,-500.0,0.00013808,2]
[331793548,1720765876394,-151.0,0.00013808,2]
[331793549,1720765876404,-151.0,0.00013808,2]
[331793550,1720765876417,-500.0,0.00013808,2]
[331793551,1720765876427,-500.0,0.00013808,2]
[331793552,1720765876438,-1692.88,0.00013808,2]
[331793553,1720765876448,-1111.86,0.00013808,2]
[331793554,1720765876459,-500.0,0.00013808,2]
[331793555,1720765876469,-500.0,0.00013808,2]
[331793556,1720765876479,-500.0,0.00013808,2]
[331793557,1720765876491,-806.67,0.00013808,2]
[331793558,1720765876503,-151.0,0.00013808,2]
[331793559,1720765876513,-151.0,0.00013808,2]
[331793560,1720765876523,-500.0,0.00013808,2]
[331793561,1720765876535,-1115.55,0.00013808,2]
[331793562,1720765876545,-500.0,0.00013808,2]
[331793563,1720765876555,-500.0,0.00013808,2]
[331793564,1720765876567,-500.0,0.00013808,2]
[331793565,1720765876578,-500.0,0.00013808,2]
[331793566,1720765876588,-500.0,0.00013808,2]
[331793567,1720765876599,-1152.37,0.00013808,2]
[331793568,1720765876610,-500.0,0.00013808,2]
[331793569,1720765876621,-500.0,0.00013808,2]
[331793570,1720765876638,-500.0,0.00013808,2]
[331793571,1720765876649,-500.0,0.00013808,2]
[331793572,1720765876660,-500.0,0.00013808,2]
[331793573,1720765876671,-1099.21,0.00013808,2]
[331793574,1720765876683,-500.0,0.00013808,2]
[331793575,1720765876694,-500.0,0.00013808,2]
[331793576,1720765876705,-500.0,0.00013808,2]
[331793577,1720765876716,-500.0,0.00013808,2]
[331793578,1720765876727,-546.67,0.00013808,2]
[331793579,1720765876738,-151.0,0.00013808,2]
[331793580,1720765876748,-151.0,0.00013808,2]
[331793581,1720765876759,-500.0,0.00013808,2]
[331793582,1720765876770,-500.0,0.00013808,2]
[331793583,1720765876781,-500.0,0.00013808,2]
[331793584,1720765876791,-500.0,0.00013808,2]
[331793585,1720765876802,-500.0,0.00013808,2]
[331793586,1720765876812,-958.58,0.00013808,2]
[331793587,1720765876823,-500.0,0.00013808,2]
[331793588,1720765876834,-500.0,0.00013808,2]
[331793589,1720765876845,-500.0,0.00013808,2]
[331793590,1720765876856,-151.0,0.00013808,2]
[331793591,1720765876866,-500.0,0.00013808,2]
[331793592,1720765876877,-1435.54,0.00013808,2]
[331793593,1720765876889,-419.65579262,0.00013808,2]
[331793594,1720765876900,-500.0,0.00013808,2]
[331793595,1720765876913,-500.0,0.00013808,2]
[331793596,1720765876924,-500.0,0.00013808,2]
[331793597,1720765876935,-933.39,0.00013808,2]
[331793598,1720765876946,-500.0,0.00013808,2]
[331793599,1720765876956,-885.22,0.00013808,2]
[331793600,1720765876967,-500.0,0.00013808,2]
[331793601,1720765876978,-500.0,0.00013808,2]
[331793602,1720765876989,-525.55,0.00013808,2]
[331793603,1720765877000,-273.62517427,0.00013808,2]
[331793604,1720765877011,-500.0,0.00013808,2]
[331793605,1720765877021,-151.0,0.00013808,2]
[331793606,1720765877032,-151.0,0.00013808,2]
[331793607,1720765877042,-578.47,0.00013808,2]
[331793608,1720765877053,-151.0,0.00013808,2]
[331793609,1720765877063,-151.0,0.00013808,2]
[331793610,1720765877074,-500.0,0.00013808,2]
[331793611,1720765877084,-500.0,0.00013808,2]
[331793612,1720765877094,-585.1,0.00013808,2]
[331793613,1720765877104,-500.0,0.00013808,2]
[331793614,1720765877115,-768.43,0.00013808,2]
[331793615,1720765877125,-500.0,0.00013808,2]
[331793616,1720765877135,-1131.03,0.00013808,2]
[331793617,1720765877146,-500.66,0.00013808,2]
[331793618,1720765877156,-500.0,0.00013808,2]
[331793619,1720765877167,-265.060408,0.00013808,2]
[331793620,1720765877177,-1387.16,0.00013808,2]
[331793621,1720765877187,-500.0,0.00013808,2]
[331793622,1720765877197,-500.0,0.00013808,2]
[331793623,1720765877208,-500.0,0.00013808,2]
[331793624,1720765877218,-151.0,0.00013808,2]
[331793625,1720765877228,-151.0,0.00013808,2]
[331793626,1720765877238,-769.71,0.00013808,2]
[331793627,1720765877250,-151.0,0.00013808,2]
[331793628,1720765877260,-500.0,0.00013808,2]
[331793629,1720765877270,-500.0,0.00013808,2]
[331793630,1720765877280,-929.61,0.00013808,2]
[331793631,1720765877290,-592.67,0.00013808,2]
[331793632,1720765877300,-500.0,0.00013808,2]
[331793633,1720765877311,-151.0,0.00013808,2]